Workbook

Sheet 1包
A1: 报价单（TGJA-WZ-202124)1包
A2: 序号 | B2: 物料描述 | C2: 材质 | D2: 型号规格（mm) | E2: 单位 | F2: 数量 | G2: 单价 （元） | H2: 合价 （元） | I2: 税率 | J2: 到货日期 | K2: 备注：报价含运费一票制结算开具13%增值税专用发票
A3: 1 | B3: 镀锌钢板 | C3: Q235B | D3: δ=3 | E3: t | F3: =7.418*1.03 -> 7.641 | I3: 13% | J3: 2021.04.05 | K3: 国标理算，定宽1500mm按需方清单定尺发货至色建钢构
A4: 2 | B4: 钢板 | C4: Q235B | D4: δ=4 | E4: t | F4: =1.523*1.03 -> 1.569 | I4: 13% | J4: 2021.04.05 | K4: 国标理算，发货至色建钢构
A5: 3 | B5: 钢板 | C5: Q235B | D5: δ=5 | E5: t | F5: =0.065*1.03 -> 0.067 | I5: 13% | J5: 2021.04.05 | K5: 国标理算，发货至色建钢构
A6: 4 | B6: 钢板 | C6: Q235B | D6: δ=6 | E6: t | F6: 6.000 | I6: 13% | J6: 2021.04.05 | K6: 国标理算，发货至色建钢构
A7: 5 | B7: 钢板 | C7: Q235B | D7: δ=8 | E7: t | F7: 4.000 | I7: 13% | J7: 2021.04.05 | K7: 国标理算，发货至色建钢构
A8: 6 | B8: 钢板 | C8: Q235B | D8: δ=10 | E8: t | F8: =0.113*1.03 -> 0.116 | I8: 13% | J8: 2021.04.05 | K8: 国标理算，发货至色建钢构
A9: 7 | B9: 钢板 | C9: Q235B | D9: δ=14 | E9: t | F9: =0.046*1.03 -> 0.047 | I9: 13% | J9: 2021.04.05 | K9: 国标理算，发货至色建钢构
A10: 8 | B10: 低合金板 | C10: Q355B | D10: δ=5 | E10: t | F10: =0.626*1.03 -> 0.645 | I10: 13% | J10: 2021.04.05 | K10: 国标理算，发货至色建钢构
A11: 9 | B11: 低合金板 | C11: Q355B | D11: δ=6 | E11: t | F11: =24.861*1.03 -> 25.607 | I11: 13% | J11: 2021.04.05 | K11: 国标理算，定尺1800*11600mm发货至色建钢构
A12: 10 | B12: 低合金板 | C12: Q355B | D12: δ=8 | E12: t | F12: =11.86*1.03 -> 12.216 | I12: 13% | J12: 2021.04.05 | K12: 国标理算，定尺2200*9000mm发货至色建钢构（或1100*9000mm)
A13: 11 | B13: 低合金板 | C13: Q355B | D13: δ=10 | E13: t | F13: =29.561*1.03 -> 30.448 | I13: 13% | J13: 2021.04.05 | K13: 国标理算，定尺1500/2000*11500mm发货至色建钢构
A14: 12 | B14: 低合金板 | C14: Q355B | D14: δ=12 | E14: t | F14: =30.345*1.03 -> 31.255 | I14: 13% | J14: 2021.04.05 | K14: 国标理算，定尺1800/2000*9000mm*10张，余下全开12000mm发货至色建钢构
A15: 13 | B15: 低合金板 | C15: Q355B | D15: δ=14 | E15: t | F15: =12.236*1.03 -> 12.603 | I15: 13% | J15: 2021.04.05 | K15: 国标理算，定宽2000mm发货至色建钢构
A16: 14 | B16: 低合金板 | C16: Q355B | D16: δ=16 | E16: t | F16: =12.454*1.03 -> 12.828 | I16: 13% | J16: 2021.04.05 | K16: 国标理算，定宽1800/2100mm发货至色建钢构
A17: 15 | B17: 低合金板 | C17: Q355B | D17: δ=18 | E17: t | F17: =3.048*1.03 -> 3.139 | I17: 13% | J17: 2021.04.05 | K17: 国标理算，定宽2000mm发货至色建钢构
A18: 16 | B18: 低合金板 | C18: Q355B | D18: δ=20 | E18: t | F18: =3.755*1.03 -> 3.868 | I18: 13% | J18: 2021.04.05 | K18: 国标理算，定宽2000mm发货至色建钢构
A19: 17 | B19: 低合金方管 | C19: Q355B | D19: □200*200*4 | E19: t | F19: =1.824*1.03 -> 1.879 | I19: 13% | J19: 2021.04.05 | K19: 国标理算，按米重24.62公斤发货至色建钢构
A20: 18 | B20: 低合金方管 | C20: Q355B | D20: □200*150*2 | E20: t | F20: =1.666*1.03 -> 1.716 | I20: 13% | J20: 2021.04.05 | K20: 国标理算，按米重10.86公斤发货至色建钢构
A21: 19 | B21: 低合金方管 | C21: Q355B | D21: □200*200*3 | E21: t | F21: =2.415*1.03 -> 2.487 | I21: 13% | J21: 2021.04.05 | K21: 国标理算，按米重18.56公斤发货至色建钢构
A22: 20 | B22: 低合金方管 | C22: Q355B | D22: □200*200*6 | E22: t | F22: =3.227*1.03 -> 3.324 | I22: 13% | J22: 2021.04.05 | K22: 国标理算，按米重36.55公斤发货至色建钢构
A23: 21 | B23: 低合金H型钢 | C23: Q355B | D23: HN500*200*10*16 | E23: t | F23: =15.537*1.03 -> 16.003 | I23: 13% | J23: 2021.04.05 | K23: 国标理算，按米重88.1公斤发货至色建钢构
A24: 22 | B24: 低合金H型钢 | C24: Q355B | D24: HN550*200*10*15 | E24: t | F24: =4.013*1.03 -> 4.133 | I24: 13% | J24: 2021.04.05 | K24: 国标理算，按米重92公斤发货至色建钢构
A25: 23 | B25: 低合金H型钢 | C25: Q355B | D25: HN692*300*13*20 | E25: t | F25: =20.455*1.03 -> 21.069 | I25: 13% | J25: 2021.04.05 | K25: 国标理算，按米重162.9公斤发货至色建钢构
A26: 24 | B26: 低合金H型钢 | C26: Q355B | D26: HW200*200*8*12 | E26: t | F26: =0.745*1.03 -> 0.767 | I26: 13% | J26: 2021.04.05 | K26: 国标理算，按米重49.9公斤发货至色建钢构
A27: 25 | B27: 低合金槽钢 | C27: Q355B | D27: [25a | E27: t | F27: =1.405*1.03 -> 1.447 | I27: 13% | J27: 2021.04.05 | K27: 国标理算，材质Q355B按米重27.41公斤发货至色建钢构
A28: 26 | B28: 低合金圆钢 | C28: Q355B | D28: φ25 | E28: t | F28: =0.583*1.03 -> 0.600 | I28: 13% | J28: 2021.04.05 | K28: 国标理算，材质Q355B按米重3.85公斤发货至色建钢构
A29: 27 | B29: 槽钢 | C29: Q235B | D29: [12.6 | E29: t | F29: =0.06*1.03 -> 0.062 | I29: 13% | J29: 2021.04.05 | K29: 国标理算，按米重12.059公斤发货至色建钢构
A30: 28 | B30: 花纹钢板 | C30: Q235B | D30: 4.5mm,扁豆型 | E30: t | F30: =1.321*1.03 -> 1.361 | I30: 13% | J30: 2021.04.05 | K30: 国标理算，按平方重36.4公斤发货至色建钢构
A31: 29 | B31: 角钢 | C31: Q235B | D31: L50*3 | E31: t | F31: =0.198*1.03 -> 0.204 | I31: 13% | J31: 2021.04.05 | K31: 国标理算，按平方重2.332公斤发货至色建钢构
A32: 30 | B32: 角钢 | C32: Q235B | D32: L50*4 | E32: t | F32: =0.041*1.03 -> 0.042 | I32: 13% | J32: 2021.04.05 | K32: 国标理算，按平方重3.059公斤发货至色建钢构
A33: 31 | B33: 角钢 | C33: Q235B | D33: L50*5 | E33: t | F33: =1.736*1.03 -> 1.788 | I33: 13% | J33: 2021.04.05 | K33: 国标理算，按平方重3.77公斤发货至色建钢构
A34: 32 | B34: 角钢 | C34: Q235B | D34: L63*5 | E34: t | F34: =0.035*1.03 -> 0.036 | I34: 13% | J34: 2021.04.05 | K34: 国标理算，按平方重4.822公斤发货至色建钢构
A35: 33 | B35: 角钢 | C35: Q235B | D35: L70*6 | E35: t | F35: =0.065*1.03 -> 0.067 | I35: 13% | J35: 2021.04.05 | K35: 国标理算，按平方重6.406公斤发货至色建钢构
A36: 34 | B36: 圆钢 | C36: Q235B | D36: φ10 | E36: t | F36: =0.007*1.03 -> 0.007 | I36: 13% | J36: 2021.04.05 | K36: 国标理算，按平方重0.617公斤发货至色建钢构
A37: 35 | B37: 圆钢 | C37: Q235B | D37: φ12 | E37: t | F37: =3.855*1.03 -> 3.971 | I37: 13% | J37: 2021.04.05 | K37: 国标理算，按平方重0.888公斤发货至色建钢构
A38: 36 | B38: 圆钢 | C38: Q235B | D38: φ20 | E38: t | F38: =0.056*1.03 -> 0.058 | I38: 13% | J38: 2021.04.05 | K38: 国标理算，按平方重2.47公斤发货至色建钢构
A39: 37 | B39: 圆钢 | C39: Q235B | D39: φ25 | E39: t | F39: =2.628*1.03 -> 2.707 | I39: 13% | J39: 2021.04.05 | K39: 国标理算，按平方重3.85公斤发货至色建钢构
A40: 38 | B40: 焊管 | C40: Q235B | D40: φ26.8*2.5 | E40: t | F40: =0.048*1.03 -> 0.049 | I40: 13% | J40: 2021.04.05 | K40: 国标理算，按平方重1.499公斤发货至色建钢构
A41: 39 | B41: 焊管 | C41: Q235B | D41: φ33.5*2.5 | E41: t | F41: =1.027*1.03 -> 1.058 | I41: 13% | J41: 2021.04.05 | K41: 国标理算，按平方重1.911公斤发货至色建钢构
A42: 40 | B42: 焊管 | C42: Q235B | D42: φ48*3 | E42: t | F42: =0.133*1.03 -> 0.137 | I42: 13% | J42: 2021.04.05 | K42: 国标理算，按平方重3.329公斤发货至色建钢构
A43: 41 | B43: 焊管 | C43: Q235B | D43: φ140*4.0 | E43: t | F43: =8.154*1.03 -> 8.399 | I43: 13% | J43: 2021.04.05 | K43: 国标理算，按平方重10.851公斤发货至色建钢构
A44: 42 | B44: 方钢 | C44: Q235B | D44: ■20 | E44: t | F44: =1.26*1.03 -> 1.298 | I44: 13% | J44: 2021.04.05 | K44: 国标理算，按平方重3.14公斤发货至色建钢构
A45: 43 | B45: 高频焊接H型钢 | C45: Q235B | D45: 高频焊H200*150*4.5*6 | E45: t | F45: =1.796*1.03 -> 1.850 | I45: 13% | J45: 2021.04.05 | K45: 国标理算，按平方重20.77公斤发货至色建钢构
A46: 44 | B46: 扁铁 | C46: Q235B | D46: 100*3 | E46: t | F46: =0.028*1.03 -> 0.029 | I46: 13% | J46: 2021.04.05 | K46: 国标理算，按平方重2.355公斤发货至色建钢构
B47: 合计 | E47: 吨 | F47: =SUM(F3:F46) -> 228.596
K48: 密封报价装订信封，信封上注明公司名称及报价单单号，快递到指定地点：铜陵有色金属集团铜冠建筑安装股份有限公司经营部黄赟收（长江西路2571号主楼三楼）
A49: 说明 1.材料符合GB/T3274-2007；GB/T700-2006；GB/T706-2008要求，质量保证书随货同行，未到视同未到货。 2.运费供方承担，5日内发货完毕；严格按需方要求时间供货 ，若不能按时供货按晚一天1000元进行罚款。 3.按国标验收，如发现质量问题，提货后3日内提出，供方3天内无条件换货往返费用供方承担 4.合同签订后，货到验收合格后开具相同金额增值税专用发票及收据进账后付清全款。 5.本合同在履行过程中发生争议，由双方当事人协商解决；也可由需方当地工商行政管理部门调解；如调解不成也可向需方当地人民法院进行起诉。
A50: 投标人单位（公章） | E50: 法定代表人或授权代理人
E51: 联系方式 | I51: 电话：
I52: 邮箱：

Sheet 2包
A1: 报价单（TGJA-WZ-202124）2包
A2: 序号 | B2: 物料描述 | C2: 材质 | D2: 型号规格（mm） | E2: 单位 | F2: 数量 | G2: 单价 （元） | H2: 合价 （元） | I2: 税率 | J2: 到货日期 | K2: 备注（报价含运费一票制结算开具13%增值税专用发票）
A3: 1 | B3: 镀锌C型钢 | C3: Q355B | D3: C200*70*20*2.0 | E3: t | F3: =7.249*1.03 -> 7.466 | I3: 13% | J3: 按需方指定时间 | K3: 国标理算，普通镀锌含量，按米重5.652公斤按需方清单制作发货至色建钢构
A4: 2 | B4: 镀锌C型钢 | C4: Q355B | D4: C200*70*20*2.5 | E4: t | F4: =10.421*1.03 -> 10.734 | I4: 13% | K4: 国标理算，普通镀锌含量，按米重7.065公斤按需方清单制作发货至色建钢构
A5: 3 | B5: 镀锌Z型钢 | C5: Q355B | D5: Z250*75*20*3.0 | E5: t | F5: =42.912*1.03 -> 44.199 | I5: 13% | K5: 国标理算，普通镀锌含量，按米重10.127公斤按需方清单制作发货至安徽丰正生物科技有限公司（安徽无为无为高铁站附近）
A6: 4 | B6: 合计（吨/总价） | E6: t | F6: =SUM(F3:F5) -> 62.399
K7: 密封报价装订信封，信封上注明公司名称及报价单单号，快递到指定地点：铜陵有色金属集团铜冠建筑安装股份有限公司经营部黄赟收（长江西路2571号主楼三楼）
A8: 说明 1.材料符合C型钢GB∕T 6725-2008 冷弯型钢技术要求，质量保证书随货同行，未到视同未到货。 2.运费供方承担，5日内发货完毕；严格按需方要求时间供货 ，若不能按时供货按晚一天1000元进行罚款。 3.按国标验收，如发现质量问题，提货后3日内提出，供方3天内无条件换货往返费用供方承担 4.合同签订后，货到验收合格后开具相同金额增值税专用发票及收据进账后付清全款。 5.本合同在履行过程中发生争议，由双方当事人协商解决；也可由需方当地工商行政管理部门调解；如调解不成也可向需方当地人民法院进行起诉。
A9: 投标人单位（公章） | E9: 法定代表人或授权代理人
E10: 联系方式 | I10: 电话：
I11: 邮箱：

Sheet 3包
A1: 报价单（TGJA-WZ-202124）3包
A2: 序号 | B2: 物料描述 | C2: 材质 | D2: 型号规格 | E2: 单位 | F2: 数量 | G2: 单价 （元） | H2: 合价 （元） | I2: 税率 | J2: 到货日期 | K2: 备注
A3: 1 | B3: 楼承板 | C3: Q235B 镀锌 | D3: 1.0mm厚YXB40-185-740(B) /镀锌含量40-50g/㎡ | E3: 米 | F3: 892 | J3: 按需方指定时间 | K3: 国标，基板实际厚度达到0.95mm, 按需方图纸清单加工发货至安徽丰正生物科技有限公司（安徽无为无为高铁站附近）
B4: 合计（总价）
K5: 密封报价装订信封，信封上注明公司名称及报价单单号，快递到指定地点：铜陵有色金属集团铜冠建筑安装股份有限公司经营部黄赟收（长江西路2571号主楼三楼）
A6: 说明 1、材料材质、加工严格按GB T 12755-2008建筑用压型钢板的技术要求； 2.运费供方承担，5日内发货完毕；严格按需方要求时间供货 ，若不能按时供货按晚一天500元进行罚款。 3.按国标验收，如发现质量问题，提货后3日内提出，供方3天内无条件换货往返费用供方承担 4.合同签订后，货到验收合格后开具相同金额增值税专用发票及收据进账后付清全款。 5.本合同在履行过程中发生争议，由双方当事人协商解决；也可由需方当地工商行政管理部门调解；如调解不成也可向需方当地人民法院进行起诉。
A7: 投标人单位（公章） | E7: 法定代表人或授权代理人
E8: 联系方式 | I8: 电话：
I9: 邮箱：

Sheet 4包
A1: 报价单（TGJA-WZ-202124）4包
A2: 序号 | B2: 物料描述 | C2: 材质 | D2: 型号规格 | E2: 单位 | F2: 数量 | G2: 单价 （元） | H2: 合价 （元） | I2: 税率 | J2: 到货日期 | K2: 备注（报价含13%增值税含运费）
A3: 1 | B3: 上海宝钢彩涂卷 | C3: 镀锌 | D3: 0.5mm厚海蓝一米宽 | E3: 吨 | F3: 27.10 | H3: =F3*G3 -> 0 | I3: 13% | J3: 按需方指定时间 | K3: 国标过磅，上海宝钢海蓝色，卷宽一米，发货至安徽丰正生物科技有限公司（安徽无为无为高铁站附近）
A4: 2 | B4: 上海宝钢彩涂卷 | C4: 镀锌 | D4: 0.5mm厚银灰一米宽 | E4: 吨 | F4: =5.758 -> 5.76 | H4: =F4*G4 -> 0 | I4: 13% | K4: 国标过磅，上海宝钢银灰色，卷宽一米，发货至色建钢构
A5: 3 | B5: 上海宝钢彩涂卷 | C5: 镀锌 | D5: 0.5mm厚白灰一米宽 | E5: 吨 | F5: 5.43 | H5: =F5*G5 -> 0 | I5: 13% | K5: 国标过磅，上海宝钢白灰色，卷宽一米，发货至色建钢构
B6: 合计（总价） | F6: =SUM(F3:F5) -> 38.285 | H6: =SUM(H3:H7) -> 0
K7: 密封报价装订信封，信封上注明公司名称及报价单单号及包号，快递到指定地点：铜陵有色金属集团铜冠建筑安装股份有限公司经营部黄赟收（长江西路2571号主楼三楼）
A8: 说明 1.材料符合GBT12754-2006彩色涂层钢板及钢带要求，提供质量保证书，质量保证书随货同行，如未到视同未到货。 2.运费供方承担，5日内发货完毕；严格按需方要求时间供货 ，若不能按时供货按晚一天1000元进行罚款。 3.按国标验收，如发现质量问题，提货后3日内提出，供方3天内无条件换货往返费用供方承担 4.合同签订后，货到验收合格后开具相同金额增值税专用发票及收据进账后付清全款。 5.本合同在履行过程中发生争议，由双方当事人协商解决；也可由需方当地工商行政管理部门调解；如调解不成也可向需方当地人民法院进行起诉。
A9: 投标人单位（公章） | E9: 法定代表人或授权代理人
E10: 联系方式 | I10: 电话：
I11: 邮箱：

Sheet 5包
A1: 报价单（TGJA-WZ-202124）5包
A2: 序号 | B2: 物料描述 | C2: 材质 | D2: 型号规格 | E2: 单位 | F2: 数量 | G2: 单价 （元） | H2: 合价 （元） | I2: 税率 | J2: 到货日期 | K2: 备注
A3: 1 | B3: 保温棉 | C3: 有效宽度1200mm 带单面铝箔 （铝箔宽度1250） | D3: 50mm厚容重12kg/m³ | E3: ㎡ | F3: 4731.3 | I3: 13% | J3: 按需要时间到货 | K3: 国标，按需方提供清单加工，发货按需方需要时间发货至发货至安徽丰正生物科技有限公司（安徽无为无为高铁站附近）
A4: 2 | B4: 不锈钢丝 | C4: 304 | D4: φ1mm | E4: 公斤 | F4: 460 | I4: 13% | J4: 按需要时间到货 | K4: 国标，按需要时间发货至发货至安徽丰正生物科技有限公司（安徽无为无为高铁站附近，需要和保温棉分开时间提前发货）
B5: 合计（总价）
K6: 密封报价装订信封，信封上注明公司名称及报价单单号及包号，快递到指定地点：铜陵有色金属集团铜冠建筑安装股份有限公司审计监察室（长江西路2571号主楼三楼）
A7: 说明 1、材料材质、加工严格按GB/T 13350-2008的技术要求并提供质保资料； 2、报价均为含税（税率为13%增值税专用发票）、含运费价； 3.按国标验收，如发现质量问题，提货后3日内提出，供方3天内无条件换货往返费用供方承担 4.合同签订后，货到验收合格后开具相同金额增值税专用发票及收据进账后付清全款。 5.本合同在履行过程中发生争议，由双方当事人协商解决；也可由需方当地工商行政管理部门调解；如调解不成也可向需方当地人民法院进行起诉。
A8: 投标人单位（公章） | E8: 法定代表人或授权代理人
E9: 联系方式 | I9: 电话：
I10: 邮箱：
